fUSD/lending_fUSD_20250906
["ID","MTS","AMOUNT","RATE_DAILY","PERIOD"]
[383828393,1757135347516,-550.0,0.00046736,5]
[383828394,1757135347538,-499.99,0.00046737,2]
[383828395,1757135347558,-2290.35,0.00046737,2]
[383828396,1757135347579,-151.29,0.00046737,120]
[383828397,1757135347603,-1723.11,0.00046737,2]
[383828398,1757135347626,-19.63011722,0.00046737,2]
[383828399,1757135347657,-131.35988278,0.00046737,2]
[383828400,1757135347684,-151.89,0.00047045,2]
[383828401,1757135347708,-1174.0,0.0004722,5]
[383828402,1757135347729,-525.0,0.00047542,4]
[383828403,1757135347751,-1155.31,0.00047542,2]
[383828404,1757135347772,-174.0,0.000477,120]
[383828405,1757135347794,-474.815,0.000477,81]
[383828406,1757135347814,-220.705,0.000477,81]
[383828407,1757135347836,-608.99,0.00048216,30]
[383828408,1757135347861,-151.89,0.00048725,2]
[383828409,1757135347883,-160.0,0.00049354,2]
[383828410,1757135347910,-500.0,0.00049607,30]
[383828411,1757135347935,-151.89,0.00050405,2]
[383828412,1757135347958,-151.89,0.00052085,2]
[383828413,1757135347980,-150.0,0.00052332,2]
[383828414,1757135348000,-252.52,0.00052752,2]
[383828415,1757135348020,-500.76,0.00053551,2]
[383828416,1757135348044,-204.8,0.00053685,2]
[383828417,1757135348068,-151.89,0.00053765,2]
[383828418,1757135348089,-200.0,0.00054181,30]
[383828419,1757135348111,-151.89,0.00055445,2]
[383828420,1757135348132,-168.97,0.00055462,2]
[383828421,1757135348153,-160.0,0.00055624,7]
[383828422,1757135348177,-208.0,0.00055626,2]
[383828423,1757135348200,-208.0,0.00055935,2]
[383828424,1757135348222,-210.0,0.00056062,7]
[383828425,1757135348250,-209.0,0.00056083,7]
[383828426,1757135348273,-209.0,0.0005688,30]
[383828427,1757135348296,-208.0,0.00056957,7]
[383828428,1757135348320,-151.89,0.00057126,2]
[383828429,1757135348342,-200.0,0.00057206,2]
[383828430,1757135348369,-209.0,0.00057245,2]
[383828431,1757135348392,-208.0,0.00057609,2]
[383828432,1757135348415,-208.0,0.00057638,2]
[383828433,1757135348439,-208.0,0.00057879,7]
[383828434,1757135348464,-208.0,0.00057968,30]
[383828435,1757135348490,-500.0,0.00058139,120]
[383828436,1757135348522,-5000.0,0.00058162,120]
[383828437,1757135348555,-208.0,0.00058173,7]
[383828438,1757135348577,-153.0,0.000583,120]
[383828439,1757135348599,-4082.35,0.00058627,2]
[383828440,1757135348621,-563.31,0.00058696,30]
[383828441,1757135348653,-183.1,0.00058865,120]
[383828442,1757135348698,-210.0,0.00058987,2]
[383828443,1757135348721,-209.0,0.00059014,2]
[383828444,1757135348744,-208.0,0.00059064,2]
[383828445,1757135348766,-179.65,0.00059261,2]
[383828446,1757135348789,-208.0,0.00059569,7]
[383828447,1757135348814,-208.0,0.00059677,30]
[383828448,1757135348839,-666.0,0.00059748,15]
[383828449,1757135348868,-208.0,0.00059794,120]
[383828450,1757135348893,-208.0,0.00059917,2]
[383828451,1757135348919,-209.0,0.00059969,120]
[383828452,1757135348944,-168.97,0.00060039,2]
[383828453,1757135348967,-210.0,0.00060126,30]
[383828454,1757135348992,-208.0,0.00060397,2]
[383828455,1757135349014,-210.0,0.00060416,120]
[383828456,1757135349034,-599.46,0.00060427,30]
[383828457,1757135349056,-500.0,0.00060573,120]
[383828458,1757135349079,-209.0,0.00060918,7]
[383828459,1757135349309,-208.0,0.00060989,120]
[383828460,1757135349335,-179.65,0.00062224,2]
[383828461,1757135349358,-1309.87253443,0.0006243,120]
[383828462,1757135349380,-155.36037244,0.00062999,7]
[383828463,1757135349404,-500.0,0.00062999,120]
[383828464,1757135349426,-290.63078603,0.00062999,7]
[383828465,1757135349458,-160.14321845,0.00062999,31]
[383828466,1757135349487,-500.0,0.00062999,120]
[383828467,1757135349510,-500.0,0.00062999,120]
[383828468,1757135349532,-337.53088298,0.00062999,120]
[383828469,1757135349554,-10000.0,0.00063,120]
[383828470,1757135372521,151.0,0.00060676,30]
[383828471,1757135374734,7900.02824289,0.00060433,2]
[383828472,1757135374757,2309.33573779,0.00060433,2]
[383828473,1757135374780,558.83716912,0.00060433,2]
[383828474,1757135423312,5800.0,0.0004411,14]
[383828475,1757135425263,160.20225,0.0003725,2]
[383828502,1757135432421,-833.0,0.00060433,2]
[383828504,1757135432432,-1768.0817302,0.00060433,2]
[383828505,1757135432442,-151.0,0.00060641,30]
[383828506,1757135432452,-151.0,0.00060673,30]
[383828507,1757135432461,-474.816,0.00063275,120]
[383828508,1757135432471,-2063.78838184,0.00064324,120]
[383828509,1757135432481,-151.41127834,0.0006436,120]
[383828510,1757135432491,-592.52,0.0006446,30]
[383828511,1757135432501,-168.97,0.00064616,2]
[383828512,1757135432512,-10000.0,0.00065,120]
[383828513,1757135432521,-179.65,0.00065187,2]
[383828514,1757135432531,-899.04,0.000654,120]
[383828515,1757135432540,-500.0,0.00065407,120]
[383828516,1757135432550,-159.67,0.00065753,2]
[383828517,1757135432559,-591.27708554,0.000668,30]
[383828518,1757135432568,-500.0,0.00066971,120]
[383828519,1757135432578,-10000.0,0.00068,120]
[383828520,1757135432591,-210.0,0.00068,120]
[383828521,1757135432600,-179.65,0.0006815,2]
[383828522,1757135432609,-9656.66874628,0.00068169,5]
[383828523,1757135432621,-3712.61413372,0.00068169,5]
[383828524,1757135432631,-928.50077606,0.00068292,10]
[383828525,1757135432641,-2977.65642018,0.00068293,15]
[383828526,1757135432650,-246.83442875,0.00068293,28]
[383828527,1757135432659,-500.0,0.00068392,120]
[383828528,1757135432669,-400.0,0.00068392,120]
[383828529,1757135432680,-400.0,0.00068392,120]
[383828530,1757135432692,-400.0,0.00068392,120]
[383828531,1757135432702,-400.0,0.00068392,120]
[383828532,1757135432712,-400.0,0.00068392,120]
[383828533,1757135432722,-400.0,0.00068392,120]
[383828534,1757135432732,-400.0,0.00068392,120]
[383828535,1757135432742,-400.0,0.00068392,120]
[383828536,1757135432751,-400.0,0.00068392,120]
[383828537,1757135432762,-400.0,0.00068392,120]
[383828538,1757135432772,-400.0,0.00068392,120]
[383828539,1757135432781,-400.0,0.00068392,120]
[383828540,1757135432790,-400.0,0.00068392,120]
[383828541,1757135432799,-400.0,0.00068392,120]
[383828542,1757135432809,-400.0,0.00068392,120]
[383828543,1757135432819,-400.0,0.00068392,120]
[383828544,1757135432828,-498.74408056,0.00068392,120]
[383828545,1757135432838,-400.0,0.00068392,120]
[383828546,1757135432848,-400.0,0.00068392,120]
[383828547,1757135432857,-164.71256895,0.00068392,120]
[383828548,1757135432867,-400.0,0.00068392,120]
[383828549,1757135432877,-400.0,0.00068392,120]
[383828550,1757135432886,-400.0,0.00068392,120]
[383828551,1757135432896,-400.0,0.00068392,120]
[383828552,1757135432906,-400.0,0.00068392,120]
[383828553,1757135432916,-400.0,0.00068392,120]
[383828554,1757135432926,-400.0,0.00068392,120]
[383828555,1757135432936,-400.0,0.00068392,120]
[383828556,1757135432946,-400.0,0.00068392,120]
[383828557,1757135432955,-400.0,0.00068392,120]
[383828558,1757135432966,-400.0,0.00068392,120]
[383828559,1757135432975,-400.0,0.00068392,120]
[383828560,1757135432985,-400.0,0.00068392,120]
[383828561,1757135432995,-400.0,0.00068392,120]
[383828562,1757135433005,-400.0,0.00068392,120]
[383828563,1757135433014,-400.0,0.00068392,120]
[383828564,1757135433023,-400.0,0.00068392,120]
[383828565,1757135433033,-400.0,0.00068392,120]
[383828566,1757135433045,-360.0,0.00068392,120]
[383828567,1757135433055,-199.0,0.00068392,45]
[383828568,1757135433065,-400.0,0.00068392,120]
[383828569,1757135433075,-400.0,0.00068392,120]
[383828570,1757135433084,-400.0,0.00068392,120]
[383828571,1757135433093,-400.0,0.00068392,120]
[383828572,1757135433103,-200.0,0.00068392,30]
[383828573,1757135433112,-400.0,0.00068392,120]
[383828574,1757135433122,-400.0,0.00068392,120]
[383828575,1757135433131,-349.81443074,0.00068392,120]
[383828576,1757135433141,-400.0,0.00068392,120]
[383828577,1757135433150,-279.92108782,0.00068392,120]
[383828578,1757135433159,-400.0,0.00068392,120]
[383828579,1757135433169,-400.0,0.00068392,120]
[383828580,1757135433178,-400.0,0.00068392,60]
[383828581,1757135433188,-400.0,0.00068392,120]
[383828582,1757135433198,-400.0,0.00068392,120]
[383828583,1757135433208,-532.8,0.00068392,120]
[383828584,1757135433217,-400.0,0.00068392,120]
[383828585,1757135433228,-401.98752295,0.00068392,120]
[383828586,1757135433237,-400.0,0.00068392,120]
[383828587,1757135433246,-400.0,0.00068392,120]
[383828588,1757135433255,-400.0,0.00068392,120]
[383828589,1757135433264,-400.0,0.00068392,120]
[383828590,1757135433274,-400.0,0.00068392,120]
[383828591,1757135433285,-400.0,0.00068392,120]
[383828592,1757135433295,-471.1567402,0.00068392,120]
[383828593,1757135433305,-400.0,0.00068392,120]
[383828594,1757135433314,-400.0,0.00068392,120]
[383828595,1757135433324,-400.0,0.00068392,120]
[383828596,1757135433334,-399.94778788,0.00068392,120]
[383828597,1757135433343,-419.72254155,0.00068392,120]
[383828598,1757135433353,-400.0,0.00068392,120]
[383828599,1757135433363,-400.0,0.00068392,120]
[383828600,1757135433372,-400.0,0.00068392,120]
[383828601,1757135433381,-400.0,0.00068392,120]
[383828602,1757135433391,-400.0,0.00068392,120]
[383828603,1757135433400,-400.0,0.00068392,120]
[383828604,1757135433409,-400.0,0.00068392,120]
[383828605,1757135433419,-4797.74641291,0.00068392,120]
[383828606,1757135433432,-4885.88472868,0.00068392,120]
[383828607,1757135433590,-535.66971658,0.00068392,120]
[383828608,1757135433605,-427.87438577,0.00068392,120]
[383828609,1757135433625,-498.8769412,0.00068392,120]
[383828610,1757135433637,-350.48781486,0.00068392,120]
[383828611,1757135433647,-147.46544506,0.00068392,120]
[383828696,1757135440339,-151.41127826,0.0006542,120]
[383828697,1757135440351,-151.41127826,0.0006648,120]
[383828698,1757135440362,-500.0,0.00068292,120]
[383828699,1757135440372,-521.89284718,0.00068292,120]
[383828700,1757135440381,-797.24088803,0.00068292,120]
[383828701,1757135440391,-252.53455494,0.00068392,120]
[383828702,1757135440400,-400.0,0.00068392,120]
[383828703,1757135440567,-53.73842681,0.00068392,120]
[383828704,1757135440584,-346.26157319,0.00068392,120]
[383828705,1757135440594,-400.0,0.00068392,120]
[383828706,1757135440603,-400.0,0.00068392,14]
[383828707,1757135440612,-400.0,0.00068392,120]
[383828708,1757135440622,-400.0,0.00068392,120]
[383828709,1757135440632,-845.63973818,0.00068392,120]
[383828710,1757135440644,-3778.89840801,0.00068392,120]
[383828711,1757135440655,-701.1,0.00068392,120]
[383828723,1757135443431,-151.41127826,0.0006754,120]
[383828724,1757135443441,-763.08185381,0.00068392,120]
[383828725,1757135443452,-400.0,0.00068392,120]
[383828726,1757135443462,-400.0,0.00068392,120]
[383828727,1757135443472,-400.0,0.00068392,120]
[383828728,1757135443481,-400.0,0.00068392,120]
[383828729,1757135443492,-400.0,0.00068392,120]
[383828730,1757135443502,-400.0,0.00068392,120]
[383828731,1757135443511,-400.0,0.00068392,120]
[383828732,1757135443521,-400.0,0.00068392,120]
[383828733,1757135443530,-400.0,0.00068392,120]
[383828734,1757135443540,-299.92915774,0.00068392,120]
[383828739,1757135444122,-100.07084226,0.00068392,120]
[383828740,1757135444132,-400.0,0.00068392,120]
[383828741,1757135444144,-400.0,0.00068392,120]
[383828742,1757135444154,-400.0,0.00068392,120]
[383828743,1757135444165,-400.0,0.00068392,120]
[383828744,1757135444176,-400.0,0.00068392,120]
[383828745,1757135444186,-400.0,0.00068392,120]
[383828746,1757135444195,-400.0,0.00068392,120]
[383828747,1757135444204,-400.0,0.00068392,120]
[383828748,1757135444214,-400.0,0.00068392,120]
[383828749,1757135444224,-400.0,0.00068392,120]
[383828750,1757135444235,-400.0,0.00068392,120]
[383828751,1757135444245,-500.0,0.00068392,120]
[383828752,1757135444254,-405.46102042,0.00068392,120]
[383828753,1757135444264,-403.49587259,0.00068392,120]
[383828754,1757135444273,-400.0,0.00068392,120]
[383828755,1757135444283,-400.0,0.00068392,120]
[383828756,1757135444294,-400.0,0.00068392,120]
[383828757,1757135444303,-400.0,0.00068392,120]
[383828758,1757135444313,-402.11570372,0.00068392,120]
[383828759,1757135444323,-401.44096007,0.00068392,120]
[383828760,1757135444334,-400.0,0.00068392,120]
[383828761,1757135444343,-400.0,0.00068392,120]
[383828762,1757135444354,-402.43353185,0.00068392,120]
[383828763,1757135444364,-400.0,0.00068392,120]
[383828764,1757135444374,-400.0,0.00068392,120]
[383828765,1757135444383,-465.44153374,0.00068392,120]
[383828766,1757135444392,-405.91120307,0.00068392,120]
[383828767,1757135444401,-400.0,0.00068392,120]
[383828768,1757135444411,-500.0,0.00068393,2]
[383828769,1757135444421,-928.50077606,0.00068393,10]
[383828770,1757135444432,-603.77,0.00068493,30]
[383828771,1757135444442,-589.84,0.00068493,30]
[383828772,1757135444453,-156.51993556,0.00068493,120]
[383828773,1757135444463,-400.0,0.00068493,120]
[383828774,1757135444472,-899.04,0.00069,120]
[383828775,1757135444482,-199.0,0.00069077,47]
[383828776,1757135444491,-250.0,0.00069357,120]
[383828777,1757135444501,-502.93469892,0.0006947,15]
[383828778,1757135444510,-500.0,0.0006947,15]
[383828779,1757135444520,-501.81194442,0.0006947,15]
[383828780,1757135444529,-5000.0,0.00069601,2]
[383828781,1757135444538,-199.0,0.00069762,49]
[383828782,1757135444547,-226.55,0.0007,120]
[383828783,1757135444557,-223.32,0.0007,2]
[383828784,1757135444566,-10000.0,0.0007,120]
[383828785,1757135444575,-3033.19259475,0.0007,120]
[383828786,1757135444584,-353.56,0.00070127,2]
[383828787,1757135444593,-199.0,0.00070447,51]
[383828788,1757135444603,-159.67,0.00070841,120]
[383828789,1757135444612,-4760.0,0.00071078,60]
[383828790,1757135444621,-797.24088802,0.00071096,120]
[383828791,1757135444630,-179.65,0.00071113,2]
[383828792,1757135444639,-199.0,0.00071132,53]
[383828793,1757135444649,-500.0,0.00071155,120]
[383828794,1757135444658,-286.84,0.00071456,120]
[383828795,1757135444667,-734.0,0.00071793,60]
[383828796,1757135444677,-199.0,0.00071817,55]
[383828797,1757135444690,-3000.0,0.00072,120]
[383828798,1757135444700,-150.0,0.00072,60]
[383828799,1757135444709,-883.6714738,0.000723,120]
[383828800,1757135444719,-199.0,0.00072502,57]
[383828801,1757135444729,-734.0,0.00072533,60]
[383828802,1757135444739,-734.0,0.00073273,60]
[383828803,1757135444748,-669.97,0.000735,7]
[383828804,1757135444758,-500.0,0.00073759,120]
[383828805,1757135444767,-500.0,0.00073871,31]
[383828806,1757135444778,-416.62686995,0.00073871,120]
[383828807,1757135444787,-491.8485204,0.00073871,31]
[383828808,1757135444797,-400.0,0.00073872,120]
[383828809,1757135444807,-400.0,0.00073872,120]
[383828810,1757135444816,-220.73917623,0.00073872,120]
[383828811,1757135444826,-400.0,0.00073872,120]
[383828812,1757135444835,-211.45080724,0.00073872,120]
[383828813,1757135444845,-400.0,0.00073872,120]
[383828814,1757135444854,-400.0,0.00073872,120]
[383828815,1757135444865,-299.79,0.00073872,120]
[383828816,1757135444874,-400.0,0.00073872,120]
[383828817,1757135444883,-400.0,0.00073872,120]
[383828818,1757135444894,-400.0,0.00073872,120]
[383828819,1757135444903,-270.33698457,0.00073872,120]
[383828820,1757135444912,-400.0,0.00073872,120]
[383828821,1757135444921,-400.0,0.00073872,120]
[383828822,1757135444934,-400.0,0.00073872,120]
[383828823,1757135444945,-400.0,0.00073872,120]
[383828824,1757135444955,-400.0,0.00073872,120]
[383828825,1757135444964,-400.0,0.00073872,120]
[383828826,1757135444974,-400.0,0.00073872,120]
[383828827,1757135444983,-400.0,0.00073872,120]
[383828828,1757135444992,-400.0,0.00073872,120]
[383828829,1757135445002,-400.0,0.00073872,120]
[383828830,1757135445011,-400.0,0.00073872,120]
[383828831,1757135445020,-400.0,0.00073872,120]
[383828832,1757135445029,-400.0,0.00073872,120]
[383828833,1757135445038,-254.12259665,0.00073872,120]
[383828834,1757135445049,-400.0,0.00073872,120]
[383828835,1757135445060,-11496.54,0.00073872,120]
[383828836,1757135445071,-400.0,0.00073872,120]
[383828837,1757135445081,-6088.72,0.00073872,120]
[383828838,1757135445090,-400.0,0.00073872,120]
[383828839,1757135445100,-400.0,0.00073872,120]
[383828840,1757135445109,-400.0,0.00073872,120]
[383828841,1757135445118,-400.0,0.00073872,120]
[383828842,1757135445128,-400.0,0.00073872,120]
[383828843,1757135445137,-494.53,0.00073872,120]
[383828844,1757135445146,-3000.0,0.00074,120]
[383828845,1757135445155,-150.0,0.00074,60]
[383828846,1757135445165,-734.0,0.00074013,60]
[383828847,1757135445174,-204.67371777,0.00074013,60]
[383828848,1757135445184,-734.0,0.00074754,60]
[383828849,1757135445195,-211.08,0.00075,120]
[383828850,1757135445205,-2000.01,0.00075,90]
[383828851,1757135445214,-2000.0,0.00075,90]
[383828852,1757135445222,-345.85,0.00075,90]
[383828853,1757135445232,-10000.0,0.00075,120]
[383828854,1757135445241,-5026.0,0.00075,120]
[383828855,1757135445252,-734.0,0.00075494,60]
[383828856,1757135445261,-249.52,0.00075612,14]
[383828857,1757135445272,-13369.28288,0.00075904,8]
[383828858,1757135445281,-159.67,0.0007593,120]
[383828859,1757135445292,-3000.0,0.00076,120]
[383828860,1757135445302,-401.35851975,0.00076233,120]
[383828861,1757135445312,-400.0,0.00076233,120]
[383828862,1757135445322,-402.00206482,0.00076233,120]
[383828863,1757135445334,-400.0,0.00076233,120]
[383828864,1757135445343,-400.0,0.00076233,120]
[383828865,1757135445353,-400.0,0.00076233,120]
[383828866,1757135445363,-400.0,0.00076233,120]
[383828867,1757135445374,-400.0,0.00076233,120]
[383828868,1757135445383,-734.0,0.00076234,60]
[383828869,1757135445392,-5000.0,0.00078,120]
[383828870,1757135445401,-3000.0,0.00078,120]
[383828871,1757135445411,-558.31,0.000781,14]
[383828872,1757135445420,-825.705,0.00078394,2]
[383828873,1757135445429,-500.0,0.00078599,120]
[383828874,1757135445438,-153.0,0.000787,120]
[383828875,1757135445447,-474.816,0.0007885,120]
[383828876,1757135445457,-899.04,0.00079,120]
[383828877,1757135445469,-400.0,0.00079351,120]
[383828878,1757135445478,-400.0,0.00079351,120]
[383828879,1757135445487,-400.0,0.00079351,120]
[383828880,1757135445497,-400.0,0.00079351,120]
[383828881,1757135445507,-400.0,0.00079351,120]
[383828882,1757135445516,-400.0,0.00079351,120]
[383828883,1757135445526,-400.0,0.00079351,120]
[383828884,1757135445535,-400.0,0.00079351,120]
[383828885,1757135445544,-400.0,0.00079351,120]
[383828886,1757135445554,-259.7,0.00079351,120]
[383828887,1757135445563,-400.0,0.00079351,120]
[383828888,1757135445572,-296.44949978,0.00079351,120]
[383828889,1757135445581,-400.0,0.00079351,120]
[383828890,1757135445590,-400.0,0.00079351,120]
[383828891,1757135445599,-400.0,0.00079351,120]
[383828892,1757135445609,-400.0,0.00079351,120]
[383828893,1757135445618,-400.0,0.00079351,120]
[383828894,1757135445627,-400.0,0.00079351,120]
[383828895,1757135445636,-400.0,0.00079351,120]
[383828896,1757135445645,-400.0,0.00079351,120]
[383828897,1757135445655,-11496.54,0.00079351,120]
[383828898,1757135445665,-6088.72,0.00079351,120]
[383828899,1757135445674,-400.0,0.00079351,120]
[383828900,1757135445685,-400.0,0.00079351,120]
[383828901,1757135445696,-400.0,0.00079351,120]
[383828902,1757135445706,-500.0,0.00079999,120]
[383828903,1757135445715,-10000.0,0.0008,120]
[383828904,1757135445725,-5500.0,0.0008,120]
[383828905,1757135445734,-5046.61,0.0008,120]
[383828906,1757135445745,-380.0,0.0008,120]
[383828907,1757135445754,-150.0,0.0008,2]
[383828908,1757135445764,-150.287,0.00080101,120]
[383828909,1757135445776,-150.151,0.00080101,120]
[383828910,1757135445785,-3079.0,0.00080202,120]
[383828911,1757135445794,-591.0,0.000803,120]
[383828912,1757135445804,-150.0,0.0008041,2]
[383828913,1757135445813,-153.0,0.00080473,120]
[383828914,1757135445825,-178.357,0.00080711,120]
[383828915,1757135445835,-150.0,0.00080711,120]
[383828916,1757135445844,-150.0,0.00080711,2]
[383828917,1757135445853,-150.154,0.00080711,120]
[383828918,1757135445863,-2043.093,0.00080711,120]
[383828919,1757135445872,-3401.872,0.00080711,120]
[383828920,1757135445882,-928.222,0.00080711,120]
[383828921,1757135445891,-1264.766,0.00080711,120]
[383828922,1757135445900,-816.0,0.00080711,2]
[383828923,1757135445910,-150.0,0.0008082,2]
[383828924,1757135445919,-2000.0,0.00081,120]
[383828925,1757135445928,-159.67,0.00081018,120]
[383828926,1757135445938,-150.0,0.0008122,2]
[383828927,1757135445947,-150.0,0.00081565,120]
[383828928,1757135445956,-150.0,0.0008163,2]
[383828929,1757135445966,-183.1,0.00081687,120]
[383828930,1757135445976,-400.0,0.00081712,120]
[383828931,1757135445986,-3000.0,0.00082,120]
[383828932,1757135445996,-150.0,0.0008204,2]
[383828933,1757135446006,-4779.25190493,0.00082103,6]
[383828934,1757135446015,-563.31,0.00082174,30]
[383828935,1757135446024,-1000.0,0.00082191,120]
[383828936,1757135446034,-1000.0,0.00082191,120]
[383828937,1757135446043,-493.71,0.00082191,120]
[383828938,1757135446053,-4779.25190493,0.00082398,7]
[383828939,1757135446063,-34547.0,0.000824,120]
[383828940,1757135446073,-500.0,0.00082408,120]
[383828941,1757135446083,-150.0,0.0008245,2]
[383828942,1757135446092,-150.0,0.0008286,2]
[383828943,1757135446102,-2000.0,0.00083,120]
[383828944,1757135446113,-430.9,0.0008305,120]
[383828945,1757135446124,-430.9,0.0008305,120]
[383828946,1757135446135,-430.9,0.0008305,120]
[383828947,1757135446145,-430.9,0.0008305,120]
[383828948,1757135446154,-430.901,0.0008305,120]
[383828949,1757135446163,-150.0,0.00083101,120]
[383828950,1757135446175,-150.0,0.0008327,2]
[383828951,1757135446184,-500.0,0.00083461,120]
[383828952,1757135446194,-150.0,0.0008347,120]
[383828953,1757135446204,-13369.28288,0.0008364,11]
[383828954,1757135446214,-150.0,0.0008367,2]
[383828955,1757135446226,-150.0,0.00083711,120]
[383828956,1757135446236,-150.0,0.00083711,120]
[383828957,1757135446246,-150.0,0.00083711,2]
[383828958,1757135446255,-150.0,0.00083711,120]
[383828959,1757135446264,-4779.25190493,0.0008397,7]
[383828960,1757135446274,-3289.0,0.00084,120]
[383828961,1757135446287,-150.0,0.0008408,2]
[383828962,1757135446297,-150.0,0.0008449,2]
[383828963,1757135446307,-2679.12369466,0.0008462,56]
[383828964,1757135446319,-114702.045718,0.0008472,7]
[383828965,1757135446330,-30223.6428544,0.0008472,7]
[383828966,1757135446340,-5000.0,0.0008473,120]
[383828967,1757135446350,-232208.2917,0.0008473,120]
[383828968,1757135446360,-4779.25190493,0.000848,7]
[383828969,1757135446369,-3777.9553568,0.0008481,7]
[383828970,1757135446379,-4779.25190493,0.0008482,7]
[383828971,1757135446388,-3777.9553568,0.0008482,7]
[383828972,1757135446398,-400.0,0.0008483,120]
[383828973,1757135446408,-516.98009037,0.0008483,120]
[383828974,1757135446418,-274.5,0.0008483,120]
[383828975,1757135446428,-400.0,0.0008483,120]
[383828976,1757135446439,-400.0,0.0008483,120]
[383828977,1757135446449,-400.0,0.0008483,120]
[383828978,1757135446459,-400.0,0.0008483,120]
[383828979,1757135446468,-400.0,0.0008483,120]
[383828980,1757135446478,-400.0,0.0008483,120]
[383828981,1757135446488,-400.0,0.0008483,120]
[383828982,1757135446498,-400.0,0.0008483,120]
[383828983,1757135446507,-400.0,0.0008483,120]
[383828984,1757135446519,-400.0,0.0008483,120]
[383828985,1757135446529,-400.0,0.0008483,120]
[383828986,1757135446538,-417.1,0.0008483,120]
[383828987,1757135446548,-345.9,0.0008483,120]
[383828988,1757135446558,-400.0,0.0008483,120]
[383828989,1757135446567,-11496.54,0.0008483,120]
[383828990,1757135446578,-6088.72,0.0008483,120]
[383828991,1757135446588,-400.0,0.0008483,120]
[383828992,1757135446599,-400.0,0.0008483,120]
[383828993,1757135446609,-400.0,0.0008483,120]
[383828994,1757135446618,-150.0,0.000849,2]
[383828995,1757135446628,-4779.25190493,0.0008497,7]
[383828996,1757135446637,-3777.9553568,0.0008498,7]
[383828997,1757135446646,-9558.50380986,0.0008499,7]
[383828998,1757135446656,-7555.9107136,0.0008499,7]
[383828999,1757135446667,-2000.0,0.00085,120]
[383829000,1757135446678,-5000.0,0.00085,120]
[383829001,1757135446691,-10000.0,0.00085,120]
[383829002,1757135446700,-3000.0,0.00086,120]
[383829003,1757135446714,-3777.9553568,0.00086095,7]
[383829004,1757135446723,-4779.25190493,0.00086096,7]
[383829005,1757135446732,-500.20165336,0.00086105,120]
[383829007,1757135446741,-159.67,0.00086106,120]
[383829009,1757135446751,-907.06148988,0.00086542,120]
[383829010,1757135446760,-150.0,0.00086711,120]
[383829011,1757135446770,-4000.0,0.00087,120]
[383829012,1757135446779,-193.35576833,0.00087192,120]
[383829013,1757135446788,-3000.0,0.00088,120]
[383829014,1757135446797,-215.88,0.00088,120]
[383829015,1757135446806,-3777.9553568,0.00088601,7]
[383829016,1757135446816,-4779.25190493,0.00088611,7]
[383829017,1757135446825,-7383.465039,0.00088621,120]
[383829018,1757135446834,-3777.9553568,0.0008896,7]
[383829019,1757135446844,-4779.25190493,0.0008897,7]
[383829020,1757135446854,-4000.0,0.00089,120]